Cogmind - Beta 13 @@@ ROGUE MODE // 2024.04.26 @ 15:43:17 Player: Mogwok Wargfriend Result: Destroyed by Y-45 Defender with Beam Rifle Performance ------------- Evolutions (2) 1000 Regions Visited (3) 600 Robots Destroyed (80) 400 Value Destroyed (1683) 1683 Prototype IDs (3) 60 Alien Tech Used (0) 0 Bonus (25) 25 TOTAL SCORE: 3768 Bonus ------- High Alert Combat Kills 85 Friendly Fire -60 Cogmind --------- Core Integrity 0/550 Matter 290/300 Energy 40/100 System Corruption 0% Temperature Cool (9) Movement Walking (120) Location -8/Materials Parts ------- > --- POWER (1) -------- (None) > --- PROPULSION (3) --- Improved Aluminum Leg Improved Aluminum Leg > --- UTILITY (5) ------ Medium Storage Unit Targeting Computer Advanced Targeting Computer Hacking Suite > --- WEAPON (2) ------- Katana > --- INVENTORY (10) --- Light Deuterium Engine High-capacity Matter Pod (200) ECM Suite Hacking Suite System Shield Mini Grenade Launcher Peak State ------------ > --- POWER ------------ Light Nuclear Core > --- PROPULSION ------- Aluminum Leg Aluminum Leg Aluminum Leg > --- UTILITY ---------- Heat Sink Medium Storage Unit Targeting Computer Advanced Targeting Computer Hacking Suite > --- WEAPON ----------- Heavy Laser Enhanced Autogun > --- INVENTORY -------- Light Deuterium Engine High-capacity Matter Pod ECM Suite Hacking Suite System Shield Beam Rifle Mini Grenade Launcher Axe Axe [Rating: 25] Favorites ----------- Power Ion Engine Engine Ion Engine Power Core Light Nuclear Core Propulsion Aluminum Leg Treads Light Treads Leg Aluminum Leg Wheel Wheel Hover Unit Hover Unit Utility Medium Storage Unit Device Improved Heat Sink Storage Medium Storage Unit Processor Targeting Computer Hackware Hacking Suite Protection Light Armor Plating Weapon Mace Energy Gun EM Pulse Gun Energy Cannon Light EM Pulse Cannon Ballistic Gun Light Assault Rifle Launcher Grenade Launcher Special Weapon Mining Laser Impact Weapon Mace Slashing Weapon Axe Build | -11 -10 -9 -8 ------- Run | Yrd Mat Mat Mat Slots Evolved 4 | . . 2 2 Power . | . . . . Propulsion 1 | . . . 1 Utility 3 | . . 2 1 Weapon . | . . . . Parts Attached 72 | 7 18 27 20 Power 9 | 1 3 4 1 Engine 8 | 1 3 4 . Core 1 | . . . 1 Reactor . | . . . . Propulsion 20 | 2 5 9 4 Treads 1 | . . . 1 Leg 14 | . 3 8 3 Wheel 4 | 2 2 . . Hover 1 | . . 1 . Flight . | . . . . Utility 13 | 2 4 5 2 Device 6 | 1 2 2 1 Storage 3 | 1 1 1 . Processor 2 | . . 1 1 Hackware 1 | . 1 . . Protection 1 | . . 1 . Artifact . | . . . . Weapon 30 | 2 6 9 13 Energy Gun 15 | 1 3 8 3 Energy Cannon 1 | . . . 1 Ballistic Gun 5 | 1 2 . 2 Ballistic Cannon . | . . . . Launcher 2 | . . . 2 Special Weapon 1 | . 1 . . Impact Weapon 2 | . . 1 1 Slashing Weapon 4 | . . . 4 Piercing Weapon . | . . . . Special Melee Weapon . | . . . . Unidentified Prototypes 3 | . . 2 1 Corrupted Parts 1 | . 1 . . System Corruption 1 | . 1 . . Parts Lost 23 | . 4 9 10 Power 4 | . 1 2 1 Propulsion 7 | . 2 2 3 Utility 4 | . . 2 2 Weapon 8 | . 1 3 4 Highest Loss Streak 9 | . 2 4 9 To Critical Strikes . | . . . . Average Slot Usage (%) 94 | . 99 93 93 Engine 9 | . 13 9 5 Leg 19 | . 15 20 20 Wheel 2 | . 12 . . Device 7 | . 13 5 3 Storage 11 | . 14 11 9 Processor 8 | . . 9 16 Hackware 8 | . . 11 9 Protection 3 | . . 4 4 Energy Gun 10 | . 13 11 1 Ballistic Gun 3 | . 13 . . Impact Weapon 5 | . . 8 6 Naked Turns . | . . . . Heaviest Build 23 | 13 17 23 23 Greatest Support 30 | 20 26 20 30 Greatest Overweight (x) 4 | 1 4 1 4 Average Overweight (x) . | . . . . Largest Inventory Capacity 10 | 8 10 10 10 Average Capacity 9 | 7 8 10 10 Most Carried 10 | 7 10 10 10 Average Carried 8 | 5 7 9 9 Final Capacity 10 | 8 10 10 10 Final Carried 10 | 7 8 10 6 Class Distribution -------------------- 78% | Scavenger-Mutant 21% | Mutant Dominant Class ---------------- Mutant | -10/Materials Scavenger-Mutant | -9/Materials Scavenger-Mutant | -8/Materials Resources | -11 -10 -9 -8 ----------- Run | Yrd Mat Mat Mat Matter Collected 1253 | 270 153 552 278 Remotely . | . . . . Salvage Created 2582 | 160 407 1390 625 Parts 157 | 10 33 80 34 Haulers Intercepted 3 | . . 2 1 Recyclers Shooed 3 | . 1 1 1 Parts Field Recycled . | . . . . Retrieved Matter . | . . . . Parts Self-Destructed . | . . . . Prevented . | . . . . Kills | -11 -10 -9 -8 ------- Run | Yrd Mat Mat Mat Combat Hostiles Destroyed 45 | . 7 23 15 Melee 2 | . . 1 1 Guns 20 | . 7 12 1 Cannons 1 | . . . 1 AOE 19 | . . 9 10 Classes Destroyed 12 | 2 5 5 . Worker 4 | . 1 3 . Builder 4 | . . 3 1 Tunneler 4 | 4 . . . Hauler 3 | . . 2 1 Recycler 6 | 1 1 3 1 Mechanic 2 | . . 1 1 Operator 3 | . 1 2 . Watcher 9 | . 3 5 1 Swarmer 18 | . 3 11 4 Grunt 17 | . 4 6 7 Duelist 2 | . . 1 1 Sentry 8 | . . 5 3 Best Kill Streak 12 | 4 4 12 7 Combat Bots Only 10 | . 4 10 6 Max Kills in Single Turn 4 | 1 1 3 4 Gunslinging . | . . . . Exploded 4 | . . 3 4 Melee 1 | . . 1 1 Uniques/NPCs Destroyed . | . . . . Combat | -11 -10 -9 -8 -------- Run | Yrd Mat Mat Mat Hostile Shots Fired 262 | . 48 109 105 Missed 61 | . 5 35 21 Damage Taken 3079 | . 533 1014 1532 Core 801 | . 57 193 551 Absorbed by Shields . | . . . . Regen/Repaired (Parts) 143 | . . 143 . Core Remaining (%) 76 | 100 77 51 . Volleys Fired 214 | 16 55 106 37 Largest 2 | 1 2 2 2 Hottest 100 | 40 100 80 94 Shots Fired 263 | 16 93 116 38 Gun 235 | 16 92 116 11 Cannon 17 | . . . 17 Launcher 10 | . . . 10 Special 1 | . 1 . . Kinetic 44 | . 43 . 1 Thermal 70 | 16 39 5 10 Explosive 10 | . . . 10 Electromagnetic 139 | . 11 111 17 Robot Hit Streak 16 | 9 9 10 16 Robot Miss Streak 5 | 2 4 4 5 Penetration Max . | . . . . Secondary Targets . | . . . . Shots Hit Robots 183 | 12 53 81 37 Core Hits 108 | 6 22 46 34 Critical Kills . | . . . . Critical Parts Destroyed 3 | . . 2 1 Critical Strikes 7 | . . 3 4 Corrupt 2 | . . 1 1 Smash 3 | . . 2 1 Sever 2 | . . . 2 Melee Attacks 60 | . . 41 19 Impact 47 | . . 41 6 Slashing 13 | . . . 13 Piercing . | . . . . Sneak Attacks 9 | . . 5 4 Combat Hostiles . | . . . . Follow-up Attacks . | . . . . Damage Inflicted 5075 | 131 626 2387 1931 Guns 1827 | 131 615 987 94 Cannons 314 | . . . 314 Explosions 1772 | . . 825 947 Melee 1151 | . . 575 576 Ramming 11 | . 11 . . Kinetic 213 | . 213 . . Thermal 1232 | 131 328 623 150 Explosive 1111 | . . 220 891 Electromagnetic 1357 | . 74 969 314 Impact 729 | . . 575 154 Slashing 422 | . . . 422 Piercing . | . . . . Highest Corruption 2 | . 1 2 . Average Corruption 1 | . 1 2 . Corruption Purged . | . . . . Corruption Blocked . | . . . . Effects 29 | . 1 28 . Message Errors 8 | . . 8 . Matter Fused 10 | . . 10 . Heat Flow Errors 5 | . 1 4 . Energy Discharges 2 | . . 2 . Data Loss (minor) 2 | . . 2 . Misfires 2 | . . 2 . Overload Shots . | . . . . Overflow Damage 438 | . . 325 113 Projectiles . | . . . . Explosions 104 | . . 92 12 Melee 334 | . . 233 101 Knockbacks 2 | . . 1 1 Impact 2 | . . 1 1 Kinetic . | . . . . Secondary . | . . . . Self-Inflicted Damage 267 | . 5 211 51 Shots 7 | . . 5 2 Rammed 1 | . 1 . . Targets Rammed 1 | . 1 . . Kicked . | . . . . Crushed . | . . . . Highest Temperature 489 | . 489 431 36 Average Temperature 125 | . 166 90 9 Received Heat Transfer 891 | . 198 207 486 Effects 6 | . 4 2 . Shutdowns 4 | . 3 1 . Interference 1 | . . 1 . Damage (minor) 1 | . 1 . . Siege Activations . | . . . . Robots Corrupted 4 | . 1 1 2 Combat Hostiles 3 | . . 1 2 Parts Fried 23 | . 2 15 6 Impact Corruptions 10 | . . 8 2 Robots Melted . | . . . . Combat Hostiles . | . . . . Parts Melted 4 | . . 4 . Heat Transferred 1989 | 300 780 637 272 Parts Sabotaged . | . . . . Parts Stolen . | . . . . Parts Stripped . | . . . . Power Chain Reactions 9 | . . 8 1 Alert | -11 -10 -9 -8 ------- Run | Yrd Mat Mat Mat Peak Influence 549 | 25 221 549 463 Initial 169 | . 16 35 169 Average 288 | 11 111 377 301 Maximum Alert Level 2 | . 1 2 2 Low Security (%) 32 | 100 83 12 18 Level 1 32 | . 16 26 72 Level 2 34 | . . 60 9 Level 3 . | . . . . Level 4 . | . . . . Level 5 . | . . . . High Security . | . . . . Max Security . | . . . . Squads Dispatched 2 | . 1 1 . Investigation . | . . . . Extermination . | . . . . Reinforcement 2 | . 1 1 . Assault . | . . . . Garrison . | . . . . Intercept . | . . . . Searches Triggered . | . . . . Construction Impeded . | . . . . Haulers Reinforced . | . . . . Active Scanning Responses . | . . . . Cargo Convoy Interrupts . | . . . . Stealth | -11 -10 -9 -8 --------- Run | Yrd Mat Mat Mat Distress Signals 5 | . 4 1 . Communications Jammed . | . . . . Distress Signals . | . . . . Times Spotted 78 | . 20 37 21 Peak Tracking Total 7 | . 7 5 7 Tactical Retreats 6 | . 1 4 1 Traps | -11 -10 -9 -8 ------- Run | Yrd Mat Mat Mat Traps Triggered 2 | . 1 1 . Indirectly . | . . . . Trap Hack Attempts . | . . . . Triggered . | . . . . Disarmed . | . . . . Reprogrammed . | . . . . Reused . | . . . . Traps Extracted . | . . . . Installed . | . . . . Triggered 1 | . 1 . . Machines | -11 -10 -9 -8 ---------- Run | Yrd Mat Mat Mat Machines Disabled 3 | . 1 1 1 Max in Single Turn 1 | . 1 1 1 Machines Repaired . | . . . . Machines Dismantled . | . . . . Machines Sabotaged . | . . . . Overloaded Fab Kills . | . . . . Hacking | -11 -10 -9 -8 --------- Run | Yrd Mat Mat Mat Machines Accessed 22 | . 6 12 4 Terminals 14 | . 5 7 2 Fabricators . | . . . . Repair Stations 2 | . . 2 . Recycling Units 4 | . 1 2 1 Scanalyzers 1 | . . 1 . Garrison Access 1 | . . . 1 Total Hacks 66 | . 17 39 10 Successful 39 | . 7 26 6 Failed 25 | . 9 12 4 Catastrophic 1 | . . 1 . Database Lockouts 2 | . 1 1 . Manual 48 | . 16 24 8 Terminals 39 | . 14 20 5 Fabricators . | . . . . Repair Stations 8 | . . 8 . Recycling Units 12 | . 3 6 3 Scanalyzers 5 | . . 5 . Garrison Access 2 | . . . 2 Terminal Hacks 5 | . 2 3 . Robot Analysis 3 | . 2 1 . Locate Traps 1 | . . 1 . Registered Prototypes 1 | . . 1 . Fabricator Hacks . | . . . . Repair Station Hacks 8 | . . 8 . Scan Component 4 | . . 4 . Repair 4 | . . 4 . Recycling Unit Hacks 2 | . . 1 1 Report Inventory 2 | . . 1 1 Scanalyzer 5 | . . 5 . Insert Component 3 | . . 3 . Analyze 2 | . . 2 . Garrison Access Hacks . | . . . . Unauthorized Hacks 19 | . 5 9 5 Terminals 10 | . 3 5 2 Assimilate 2 | . 1 1 . Botnet 6 | . 1 4 1 Operators 2 | . 1 . 1 Fabricators . | . . . . Repair Stations . | . . . . Recycling Units 8 | . 2 4 2 Reject 4 | . 1 2 1 Mask 4 | . 1 2 1 Scanalyzers . | . . . . Garrison Access 1 | . . . 1 Intercept 1 | . . . 1 Data Cores Recovered 1 | . 1 . . Used . | . . . . Hacking Detections 20 | . 6 10 4 Full Trace Events . | . . . . Feedback Events . | . . . . Feedback Blocked . | . . . . Robot Schematics Acquired . | . . . . Robots Built . | . . . . Authchips . | . . . . Time . | . . . . Total Robot Build Rating . | . . . . Part Schematics Acquired 2 | . . 2 . Parts Built . | . . . . Authchips . | . . . . Time . | . . . . Total Part Build Rating . | . . . . Parts Repaired 4 | . . 4 . Time 116 | . . 116 . Parts Recycled . | . . . . Recycled Matter . | . . . . Retrieved Matter . | . . . . Retrieved Components . | . . . . Parts Scanalyzed 2 | . . 2 . Part Schematics Acquired 2 | . . 2 . Parts Damaged . | . . . . Bothacking | -11 -10 -9 -8 ------------ Run | Yrd Mat Mat Mat Used RIF Installer . | . . . . Robots Hacked . | . . . . Non-combat . | . . . . Combat . | . . . . Robot Hacks Applied . | . . . . Relay Couplers Released . | . . . . Fabnet Peak Effective % . | . . . . Robots Rewired . | . . . . Allies Hacked . | . . . . Hacks Repelled . | . . . . Allies | -11 -10 -9 -8 -------- Run | Yrd Mat Mat Mat Total Allies 1 | . . 1 . Largest Group 1 | . . 1 . Highest-Rated Group 10 | . . 10 . Highest-Rated Ally 10 | . . 10 . Total Orders . | . . . . Ally Attacks . | . . . . Total Damage . | . . . . Kills . | . . . . Allies Corrupted . | . . . . Allies Melted . | . . . . Intel | -11 -10 -9 -8 ------- Run | Yrd Mat Mat Mat Robot Analysis Total 3 | . 2 1 . Derelict Logs Recovered . | . . . . Drone Launches . | . . . . Drone Recoveries . | . . . . Exploration | -11 -10 -9 -8 ------------- Run | Yrd Mat Mat Mat Turns Passed 4068 | 133 945 2165 825 Spaces Moved 2239 | 102 625 1101 411 Core 12 | 10 1 . 1 Treads . | . . . . Legs 1759 | . 248 1101 410 Wheels 468 | 92 376 . . Hover . | . . . . Flight . | . . . . Fastest Speed 50 | 50 80 120 120 Average Speed 132 | 79 103 145 157 Slowest Speed 250 | 100 250 190 250 Overloaded Moves . | . . . . Propulsion Burnouts . | . . . . Robots Hopped . | . . . . Cave-ins Triggered . | . . . . Exploration Rate (%) 45 | 5 72 72 33 Regions Visited 3 Branch Regions . Pre-discovered Areas . | . . . . Known Exits Taken . | . . . . Unknown Exits Taken 3 | 1 1 1 . Scrap Searched . | . . . . Spaces Dug 31 | . 1 20 10 Terrain Destroyed 115 | . 1 53 61 Melee 21 | . . 20 1 Projectile 1 | . 1 . . AOE 93 | . . 33 60 Terrain Rammed . | . . . . Walls Destroyed . | . . . . Machines Disabled . | . . . . Actions | -11 -10 -9 -8 --------- Run | Yrd Mat Mat Mat Total 2975 | 135 841 1483 516 Wait 317 | . 121 181 15 Move 2236 | 101 624 1100 411 Hop . | . . . . Pick Up 34 | 9 8 13 4 Fast Attach 32 | 7 5 10 10 Attach 23 | . 8 9 6 Detach 10 | . 6 2 2 Swap 17 | . 5 8 4 Drop 31 | 2 8 13 8 Fire 214 | 16 55 106 37 Melee 60 | . . 41 19 Ram 1 | . 1 . . Kick . | . . . . Crush . | . . . . Escape Stasis . | . . . . Rewire . | . . . . Trap . | . . . . Miscellaneous . | . . . . Route ------- -11/Scrapyard -10/Materials (discovered 3 exits: *Mat / [*Min x2]) -9/Materials (discovered 4 exits: *Mat x2 / [*Min x2]) -8/Materials History --------- Turn | Location | Event 20 | -11/Scrapyard | Discovered new exit (range 14) 134 | -11/Scrapyard | Entered Materials 155 | -10/Materials | Discovered new exit (range 15) 300 | -10/Materials | Build established: Mutant 603 | -10/Materials | Build established: Scavenger-Mutant 636 | -10/Materials | Discovered new exit (range 8) 778 | -10/Materials | Central database locked down 1031 | -10/Materials | Discovered new exit (range 14) 1079 | -10/Materials | Entered another Materials area 1079 | -9/Materials | Evolved 2 slots: Utility x2 1367 | -9/Materials | Discovered new exit (range 14) 1419 | -9/Materials | Destroyed 10 combat bots 1429 | -9/Materials | Lost 4 parts (1n1u2w) 1959 | -9/Materials | Repaired EM Pulse Gun 2129 | -9/Materials | Discovered new exit (range 16) 2206 | -9/Materials | Central database locked down 2272 | -9/Materials | Lost 3 parts (1p1n1u) 2449 | -9/Materials | Discovered new exit (range 6) 3119 | -9/Materials | Repaired Aluminum Leg 3146 | -9/Materials | Repaired Aluminum Leg 3186 | -9/Materials | Repaired Hacking Suite 3198 | -9/Materials | Discovered new exit (range 15) 3244 | -9/Materials | Entered another Materials area 3244 | -8/Materials | Evolved 2 slots: Propulsion x1, Utility x1 4037 | -8/Materials | Core integrity fell below 50% 4050 | -8/Materials | Core integrity fell below 20% 4069 | -8/Materials | Destroyed by Y-45 Defender with Beam Rifle Last Messages --------------- 03989_ Lgt. EM Pulse Cannon destroyed. 03991_ Acquired 10 matter. 04002_ Aluminum Leg destroyed. 04008_ Enh. Autogun severed. 04012_ Lgt. Nuclear Core destroyed. 04013_ Hvy. Laser severed. 04014_ Heat Sink destroyed. 04024_ Aluminum Leg destroyed. 04031_ Axe destroyed. 04033_ L-31 Rogue Imp. Aluminum Leg severed. 04041_ Axe destroyed. 04044_ Beam Rifle severed. 04044_ Acquired Beam Rifle. 04051_ L-31 Rogue destroyed. 04056_ Acquired Imp. Aluminum Leg. 04058_ Acquired Katana. 04058_ Beam Rifle destroyed. 04061_ Acquired 45 matter. 04066_ Acquired Imp. Aluminum Leg. Map ----- +----------------------------------------------------+ | ?????????????????????????????????????????????????? | | ?????????????????????????????????????????????????? | | ?????????????????????????????????????????????????? | | ?????????????????????????????????????????????????? | | ?????????????????????????????????????????????????? | | ?????????????????????????????????????????????????? | | ?????????????????????????????????????????????????? | | ???????????????????????????????????????? ???????? | | ???????????????????????????????????????? ##?????? | | ???????????????????????????????????????? ?????? | | ??????##????###? ????????????????????? ?????? | | ??????# ???? ? ????????????????????? ?????? | | ??????# ??? ## ?????????????????????# #?????? | | ??????# """ ## #????????????????????# #?????? | | ??????# """"" ## +????????????????????# #?????? | | ??????# """"" ## #????????????????????# #?????? | | ??????# """"" ## #????????????????????# #?????? | | ??????# """ ## #????????????????????# #?????? | | ??????# ## #????????????????????# #?????? | | ??????# / ## #????????????????????# #?????? | | ??????# ## #?????#############??# #?????? | | ####### ] ## #?????# #??# #?????? | | ##+####### #?????# ####!= # """ " | | " """ ## ####### ####### [[u + =%==*+ """ " | | " """ # #% Y####[%[# """ " | | " """ + Y;@ #??#=%*#?????? | | # u !#% #??#[!=#?????? | | # ########### # #??#%[=#?????? | | [ # #?????????# #############??#[! #?????? | | # ########### ############### #????? | | ####### # # #????? | | ??????# # """ #! #????? | | ??????# # """ ] # #????? | | ????### # """ ! # ####### #????? | | ????## + ] #^ #?????###+###????? | | ????# # # %[ #[== ""#??????????????? | | ????# # # [ #[== !!!Y"#??????????????? | | ##### # ! #[== !!!""#??????????????? | | " ## # # ####+# # !! ###??????????????? | | " #### # ### ### ^ #????????????????? | | " #?# = # ######?# #????????????????? | | #?### = # #? " #????????????????? | | #??##*| # #? T #????????????????? | | ##### # ## " #????????????????? | | ## # ## ? #????????????????? | | * # ## ? #????????????????? | | = + ### ? ## ?????????????????? | | # #?# ? #?????????????????????? | | ### #?????[!!??????????????????????? | | ## #??????????????????????????????? | +----------------------------------------------------+ Best States ------------- Heat Dissipation 42 Energy Generation 14 Energy Capacity 250 Matter Stores 300 Matter Capacity 300 Sight Range 16 Terrain Scan Density 10 Armor Coverage 150 Evasion (%) 55 Targeting Accuracy 13 Offensive Hacking 10 Item Schematics ----------------- ECM Suite | -9/Materials | Scanalyzed Hacking Suite | -9/Materials | Scanalyzed Robot Schematics ------------------ None Fabricated ------------ Nothing Alien Tech Used ----------------- None Achievements -------------- None Challenges ------------ None Game ------ Seed ColdMagneticReconfigurator Manual? 0 Play Time 00:32:08 Cumulative 188.5 hours Start 2024.04.25 @ 20:51:45 End 2024.04.26 @ 15:43:17 Sessions 2 Manual Loads 0 Difficulty Rogue Special Mode None Game No. 177 Rogue 177 Adventurer 0 Explorer 0 Win Type - Total 0 Types 0/0/0/0/0/0/0/0/0 Lore% 56 Gallery% 67 Achievement% 45 Wizard Run 0 Options --------- Layout 2 ASCII 1 Keyboard 1 Movement Numpad Keybinds 0 Fullscreen 2 Font 32/TamsynBold Map View 50x44 Zoom Use 0% Tactical HUD 1 Map Filters NONE Filters NONE Steam 1 RUN: 7057ea55-8a79-43c2-8f51-19fa2fec858c